Cogmind - Beta 11 @@@ ROGUE MODE // 2022.03.19 @ 01:06:43 Player: RNGesus Result: Self-destructed Performance ------------- Evolutions (6) 3000 Regions Visited (22) 4400 Robots Destroyed (122) 610 Value Destroyed (3107) 3107 Prototype IDs (49) 980 Alien Tech Used (0) 0 Bonus (1228) 1228 TOTAL SCORE: 13325 Bonus ------- High Alert Combat Kills 108 Follower Combat Kills 207 Met Data Miner 300 Met Warlord at Base 500 MAIN.C Attacked Warlord 500 Friendly Fire -387 Cogmind --------- Core Integrity 627/1150 Matter 241/300 Energy 100/100 System Corruption 0% Temperature Cool (0) Movement Core (100) Ox1 Location -4/Factory Parts ------- > --- POWER (1) -------- (None) > --- PROPULSION (4) --- (None) > --- UTILITY (12) ----- Advanced Visual Processing Unit Advanced Signal Interpreter Experimental Signal Interpreter Improved Hacking Suite Advanced Hacking Suite Advanced Hacking Suite Advanced System Shield Improved Corruption Screen > --- WEAPON (2) ------- Force Lance > --- INVENTORY (5) ---- Advanced Sensor Array Experimental Melee Analysis Suite Vortex Lance (24) Peak State ------------ > --- POWER ------------ Light Antimatter Reactor > --- PROPULSION ------- Biomechanical Wings Biomechanical Wings Electron Diverter Electron Diverter > --- UTILITY ---------- Small Storage Unit Advanced Visual Processing Unit Advanced Sensor Array Advanced Signal Interpreter Advanced Melee Analysis Suite Advanced Melee Analysis Suite Improved Hacking Suite Advanced Hacking Suite Advanced Hacking Suite System Shield Advanced System Shield Improved Corruption Screen > --- WEAPON ----------- Advanced KE Penetrator Vortex Lance > --- INVENTORY -------- Advanced Sensor Array Experimental Signal Interpreter Experimental Melee Analysis Suite Improved Propulsion Shielding Hacking Suite Hacking Drone Bay Force Lance Vortex Lance [Rating: 115] Favorites ----------- Power Micro Nuclear Core Engine Improved Ion Engine Power Core Micro Nuclear Core Reactor Light Antimatter Reactor Propulsion Light Treads Treads Light Treads Wheel Compact Wheel Flight Unit Improved VTOL Module Utility Hacking Suite Device Advanced Sensor Array Storage Small Storage Unit Processor Machine Analyzer Hackware Hacking Suite Protection Hardened Medium Armor Plating Weapon Improved Assault Rifle Energy Gun Medium Laser Ballistic Gun Improved Assault Rifle Ballistic Cannon Heavy Assault Cannon Launcher Grenade Launcher Special Weapon RU-N14's Throwing Claymores v3 Slashing Weapon Scythe Piercing Weapon CR-A16's Pointy Stick Build | -11 -10 -10 -9 -8 -7 -7 -7 -7 -6 -6 -6 -6 -6 -5 -5 -5 -5 -5 -5 -5 -4 -4 ------- Run | Scr Mat Min Mat Mat Fac Low Low Dat Pro Fac Low Low Zio Pro Fac Was Fac Upp Upp War Pro Fac Slots Evolved 12 | . . . 2 2 2 . . . . 2 . . . . 2 . . . . . . 2 Power . | . . . . . . . . . . . . . . . . . . . . . . . Propulsion 2 | . . . 1 . . . . . . . . . . . 1 . . . . . . . Utility 10 | . . . 1 2 2 . . . . 2 . . . . 1 . . . . . . 2 Weapon . | . . . . . . . . . . . . . . . . . . . . . . . Parts Attached 201 | 4 14 3 21 37 20 1 1 . 1 15 . . 8 . 6 6 35 2 1 10 . 16 Power 26 | 1 3 . 3 3 1 . . . . . . . . . 2 1 11 . . . . 1 Engine 8 | 1 3 . 3 1 . . . . . . . . . . . . . . . . . . Core 11 | . . . . 2 1 . . . . . . . . . 2 . 6 . . . . . Reactor 7 | . . . . . . . . . . . . . . . . 1 5 . . . . 1 Propulsion 44 | 2 1 1 6 13 5 . . . . 3 . . 4 . 1 . 6 . . 2 . . Treads 13 | 2 . . 2 9 . . . . . . . . . . . . . . . . . . Leg . | . . . . . . . . . . . . . . . . . . . . . . . Wheel 6 | . 1 1 4 . . . . . . . . . . . . . . . . . . . Hover . | . . . . . . . . . . . . . . . . . . . . . . . Flight 25 | . . . . 4 5 . . . . 3 . . 4 . 1 . 6 . . 2 . . Utility 83 | 1 2 . 3 8 13 1 1 . . 12 . . 3 . 3 3 14 2 1 5 . 11 Device 27 | . 1 . . 3 8 . . . . 3 . . 1 . . 2 3 1 . 3 . 2 Storage 6 | 1 1 . . 1 . . . . . 1 . . . . . . 1 . . . . 1 Processor 13 | . . . 2 2 1 . . . . 2 . . . . . . . . 1 1 . 4 Hackware 24 | . . . . 1 4 1 1 . . 4 . . 1 . 2 . 7 . . . . 3 Protection 13 | . . . 1 1 . . . . . 2 . . 1 . 1 1 3 1 . 1 . 1 Artifact . | . . . . . . . . . . . . . . . . . . . . . . . Weapon 48 | . 8 2 9 13 1 . . . 1 . . . 1 . . 2 4 . . 3 . 4 Energy Gun 12 | . 5 1 5 . . . . . 1 . . . . . . . . . . . . . Energy Cannon . | . . . . . . . . . . . . . . . . . . . . . . . Ballistic Gun 15 | . 1 . 2 8 . . . . . . . . . . . . 2 . . . . 2 Ballistic Cannon 2 | . . . . 1 . . . . . . . . . . . 1 . . . . . . Launcher 6 | . 2 1 2 1 . . . . . . . . . . . . . . . . . . Special Weapon 1 | . . . . . . . . . . . . . . . . . . . . 1 . . Impact Weapon . | . . . . . . . . . . . . . . . . . . . . . . . Slashing Weapon 4 | . . . . 3 1 . . . . . . . . . . . . . . . . . Piercing Weapon 8 | . . . . . . . . . . . . . 1 . . 1 2 . . 2 . 2 Special Melee Weapon . | . . . . . . . . . . . . . . . . . . . . . . . Unidentified Prototypes 25 | . . . 2 4 2 . . . . . . . 1 . . 2 5 . . 6 . 3 Parts Lost 61 | . 7 2 14 8 3 . . . 3 1 . . . . 1 . 9 1 . . . 12 Power 12 | . 4 . 2 1 1 . . . . . . . . . 1 . 1 1 . . . 1 Propulsion 22 | . 1 2 5 6 . . . . . . . . . . . . 4 . . . . 4 Utility 19 | . 1 . 2 . 2 . . . 3 1 . . . . . . 3 . . . . 7 Weapon 8 | . 1 . 5 1 . . . . . . . . . . . . 1 . . . . . Highest Loss Streak 11 | . 2 3 11 4 3 . . . 3 1 . . . . 1 . 5 1 . . . 7 To Critical Strikes . | . . . . . . . . . . . . . . . . . . . . . . . Average Slot Usage (%) 87 | . 90 57 67 94 88 92 92 92 92 86 93 93 92 86 94 92 90 68 68 78 88 89 Engine 2 | . 13 . 10 3 . . . . . . . . . . . . . . . . . . Core 3 | . . . . 5 6 7 7 7 7 6 6 6 6 6 5 . 4 . . . . . Treads 8 | . 26 . 9 24 . . . . . . . . . . . . . . . . . . Wheel 1 | . 1 14 10 . . . . . . . . . . . . . . . . . . . Flight 11 | . . . . . 22 23 23 23 23 20 20 20 20 20 23 23 21 11 11 15 23 19 Device 5 | . 7 . . 8 7 7 7 7 7 5 6 6 6 6 5 4 4 5 5 4 5 4 Storage 6 | . 14 14 11 9 . . . . . 5 6 6 6 6 5 5 4 . . . . 3 Processor 12 | . . . 5 10 15 15 15 15 15 19 20 20 18 13 11 11 11 11 15 17 17 23 Hackware 17 | . . . . 7 27 30 30 30 30 17 20 20 20 20 27 29 32 29 29 29 29 27 Protection 3 | . . . 2 6 . . . . . 3 6 6 6 6 6 4 1 5 5 5 5 . Energy Gun 2 | . 20 13 8 . . . . . . . . . . . . . . . . . . . Ballistic Gun 5 | . 4 14 10 17 . . . . . . . . . . . . . . . . . 1 Slashing Weapon 1 | . . . . . 6 7 7 7 7 6 6 6 2 . . . . . . . . . Piercing Weapon 1 | . . . . . . . . . . . . . 3 6 5 5 5 . . 4 5 5 Naked Turns . | . . . . . . . . . . . . . . . . . . . . . . . Heaviest Build 45 | 8 30 23 34 45 11 9 9 9 9 17 16 16 17 17 22 21 21 11 3 14 7 28 Greatest Support 60 | 40 40 16 48 60 16 16 16 16 16 17 17 17 17 17 22 22 24 12 12 20 8 28 Greatest Overweight (x) 2 | . 2 1 2 2 . . . . . 1 . . . . . . . . . . . 1 Average Overweight (x) . | . . 1 . . . . . . . . . . . . . . . . . . . . Largest Inventory Capacity 15 | 8 15 15 15 15 15 5 5 5 5 8 8 8 8 8 8 8 8 5 5 5 5 8 Average Capacity 9 | 7 11 15 15 15 5 5 5 5 5 7 8 8 8 8 8 8 7 5 5 5 5 6 Most Carried 15 | 6 7 5 15 15 15 5 5 5 5 8 8 8 8 8 8 8 8 4 5 5 5 8 Average Carried 8 | 3 5 4 8 14 4 5 4 5 5 5 8 8 7 8 7 7 7 4 4 4 5 5 Final Capacity 15 | 8 15 15 15 15 5 5 5 5 5 8 8 8 8 8 8 8 5 5 5 5 5 5 Final Carried 15 | 6 5 4 11 15 5 5 5 5 5 8 8 8 8 8 7 8 5 4 5 5 5 3 Class Distribution -------------------- 30% | Mutant 23% | Hacker-Scout 21% | Wizard-Scout 11% | Hacker-Sprinter 9% | Scavenger-Mutant Dominant Class ---------------- Mutant | -10/Materials Mutant | -10/Mines Mutant | -9/Materials Mutant | -8/Materials Hacker-Sprinter | -7/Factory Hacker-Sprinter | -7/Lower Caves Hacker-Sprinter | -7/Lower Caves Hacker-Sprinter | -7/Data Miner Hacker-Sprinter | -6/Proximity Caves Hacker-Scout | -6/Factory Hacker-Scout | -6/Lower Caves Hacker-Scout | -6/Lower Caves Hacker-Scout | -6/Zion Hacker-Scout | -5/Proximity Caves Hacker-Scout | -5/Factory Hacker-Scout | -5/Waste Wizard-Scout | -5/Factory Wizard-Scout | -5/Upper Caves Wizard-Scout | -5/Upper Caves Wizard-Scout | -5/Warlord Wizard-Scout | -4/Proximity Caves Wizard-Scout | -4/Factory Resources | -11 -10 -10 -9 -8 -7 -7 -7 -7 -6 -6 -6 -6 -6 -5 -5 -5 -5 -5 -5 -5 -4 -4 ----------- Run | Scr Mat Min Mat Mat Fac Low Low Dat Pro Fac Low Low Zio Pro Fac Was Fac Upp Upp War Pro Fac Matter Collected 3016 | 204 219 20 286 1140 71 28 76 . 80 140 10 . . 78 52 70 351 13 28 46 21 83 Remotely . | . . . . . . . . . . . . . . . . . . . . . . . Salvage Created 4422 | . 420 13 1050 1683 124 . . . . 237 . . . 60 56 . 475 . . . . 304 Parts 307 | . 30 2 71 134 6 . . . . 20 . . . 5 7 . 18 . . . . 14 Haulers Intercepted 15 | . . . 4 5 . . . . . 1 . . . . . . 3 . . . . 2 Recyclers Shooed 2 | . . . 2 . . . . . . . . . . . . . . . . . . . Parts Field Recycled . | . . . . . . . . . . . . . . . . . . . . . . . Retrieved Matter . | . . . . . . . . . . . . . . . . . . . . . . . Parts Self-Destructed 52 | . . . . . . . . . 8 . . . . . . . . . 2 42 . . Prevented 7 | . . . . . . 2 . . . . . . . . . . . . . 5 . . Kills | -11 -10 -10 -9 -8 -7 -7 -7 -7 -6 -6 -6 -6 -6 -5 -5 -5 -5 -5 -5 -5 -4 -4 ------- Run | Scr Mat Min Mat Mat Fac Low Low Dat Pro Fac Low Low Zio Pro Fac Was Fac Upp Upp War Pro Fac Combat Hostiles Destroyed 75 | . 11 5 25 26 2 . . . . 1 . . . . 2 . 1 . . . . 2 Melee 8 | . . . . . 2 . . . . 1 . . . . 2 . 1 . . . . 2 Guns 55 | . 8 2 19 26 . . . . . . . . . . . . . . . . . . AOE 12 | . 3 3 6 . . . . . . . . . . . . . . . . . . . Classes Destroyed 16 | . 5 1 4 4 . . . . . 1 . . . 1 . . . . . . . . Worker 8 | . 1 . 2 5 . . . . . . . . . . . . . . . . . . Builder 2 | . . . 1 1 . . . . . . . . . . . . . . . . . . Tunneler 3 | . . . . 2 . . . . . 1 . . . . . . . . . . . . Hauler 15 | . . . 4 5 . . . . . 1 . . . . . . 3 . . . . 2 Recycler 2 | . . . 1 . 1 . . . . . . . . . . . . . . . . . Operator 13 | . 1 . 1 3 . . . . . 2 . . . . 2 . 3 . . . . 1 Watcher 6 | . 1 . . 2 . . . . . 1 . . . . . . 1 . . . . 1 Swarmer 24 | . 3 3 8 5 2 . . . . . . . . . 2 . . . . . . 1 Grunt 34 | . 8 . 13 12 . . . . . . . . . . . . 1 . . . . . Sentry 9 | . . . 4 5 . . . . . . . . . . . . . . . . . . Specialist 2 | . . . . 2 . . . . . . . . . . . . . . . . . . Hunter 1 | . . . . 1 . . . . . . . . . . . . . . . . . . Programmer 2 | . . . . . . . . . . 1 . . . . . . . . . . . 1 Heavy 1 | . . . . 1 . . . . . . . . . . . . . . . . . . Samaritan 1 | . . . . . . . . . . . . . . 1 . . . . . . . . Assembled 2 | . . 2 . . . . . . . . . . . . . . . . . . . . Best Kill Streak 9 | . 3 3 9 7 2 . . . . 1 . . . . 2 . 2 . . . . 2 Combat Bots Only 6 | . 3 3 6 6 2 . . . . 1 . . . . 2 . 1 . . . . 1 Max Kills in Single Turn 3 | . 2 2 3 2 1 . . . . 1 . . . 1 1 . 1 . . . . 1 Gunslinging . | . . . . . . . . . . . . . . . . . . . . . . . Exploded 2 | . 2 2 2 . . . . . . . . . . . . . . . . . . . Melee 1 | . . . . . 1 . . . . 1 . . . . 1 . 1 . . . . 1 Uniques/NPCs Destroyed . | . . . . . . . . . . . . . . . . . . . . . . . Combat | -11 -10 -10 -9 -8 -7 -7 -7 -7 -6 -6 -6 -6 -6 -5 -5 -5 -5 -5 -5 -5 -4 -4 -------- Run | Scr Mat Min Mat Mat Fac Low Low Dat Pro Fac Low Low Zio Pro Fac Was Fac Upp Upp War Pro Fac Damage Taken 8074 | . 754 122 1376 2007 313 . 32 . 165 135 . 19 . 272 361 . 1199 46 . 177 61 1035 Core 2426 | . 161 39 396 304 112 . 32 . 68 25 . . . 103 41 . 461 23 . 89 49 523 Absorbed by Shields 8 | . . . . . . . . . . 8 . . . . . . . . . . . . Redirected to Shielding 145 | . . . . . . . . . . 7 . 12 . 63 . . . . . 56 7 . Regen/Repaired (Parts) 287 | . . . . . . . . . . . . . 230 . . . 57 . . . . . Core Remaining (%) 50 | 100 . 20 1 44 . . . . 69 . . . . 84 . . . . . . 33 . Volleys Fired 297 | . 46 8 114 128 . . . . . . . . . . . . 1 . . . . . Largest 2 | . 2 2 2 2 . . . . . . . . . . . . 1 . . . . . Hottest 90 | . 90 70 70 51 . . . . . . . . . . . . 33 . . . . . Shots Fired 529 | . 88 14 172 254 . . . . . . . . . . . . 1 . . . . . Gun 517 | . 84 12 166 254 . . . . . . . . . . . . 1 . . . . . Cannon . | . . . . . . . . . . . . . . . . . . . . . . . Launcher 12 | . 4 2 6 . . . . . . . . . . . . . . . . . . . Special . | . . . . . . . . . . . . . . . . . . . . . . . Kinetic 346 | . 15 6 70 254 . . . . . . . . . . . . 1 . . . . . Thermal 146 | . 44 6 96 . . . . . . . . . . . . . . . . . . . Explosive 12 | . 4 2 6 . . . . . . . . . . . . . . . . . . . Electromagnetic 25 | . 25 . . . . . . . . . . . . . . . . . . . . . Robot Hit Streak 20 | . 13 7 12 20 . . . . . . . . . . . . 4 . . . . . Robot Miss Streak 4 | . 3 2 4 4 . . . . . . . . . . . . . . . . . . Penetration Max . | . . . . . . . . . . . . . . . . . . . . . . . Secondary Targets 3 | . 1 . 2 . . . . . . . . . . . . . . . . . . . Max Gunslinging Chain 1 | . 1 . 1 . . . . . . . . . . . . . . . . . . . Shots Hit Robots 440 | . 61 10 103 186 7 . . . . 16 . . . 2 6 . 37 . . . . 12 Core Hits 195 | . 25 6 56 80 3 . . . . 7 . . . 1 3 . 11 . . . . 3 Critical Kills 3 | . . . . 3 . . . . . . . . . . . . . . . . . . Critical Parts Destroyed 1 | . . . . 1 . . . . . . . . . . . . . . . . . . Critical Strikes 19 | . 1 1 6 4 1 . . . . 1 . . . . . . 2 . . . . 3 Burn 8 | . 1 1 6 . . . . . . . . . . . . . . . . . . . Destroy 4 | . . . . 4 . . . . . . . . . . . . . . . . . . Sever 2 | . . . . . 1 . . . . 1 . . . . . . . . . . . . Impale 3 | . . . . . . . . . . . . . . . . . 2 . . . . 1 Sunder 2 | . . . . . . . . . . . . . . . . . . . . . . 2 Melee Attacks 310 | . . . . 3 34 5 5 . 4 75 3 2 . 5 37 . 91 . . . 3 43 Impact . | . . . . . . . . . . . . . . . . . . . . . . . Slashing 131 | . . . . 3 34 5 5 . 4 75 3 2 . . . . . . . . . . Piercing 149 | . . . . . . . . . . . . . . 5 37 . 91 . . . . 16 Entropic 30 | . . . . . . . . . . . . . . . . . . . . . 3 27 Sneak Attacks 18 | . . . . . 1 . . . . 5 . . . 1 1 . 8 . . . . 2 Combat Hostiles 1 | . . . . . . . . . . . . . . . . . 1 . . . . . Follow-up Attacks 3 | . . . . . . . . . . . . . . . . . 3 . . . . . Damage Inflicted 10247 | . 982 285 1712 2846 261 . . . . 775 . . . 120 302 . 1815 . . . . 1149 Guns 4931 | . 758 81 1220 2846 . . . . . . . . . . . . 26 . . . . . Cannons . | . . . . . . . . . . . . . . . . . . . . . . . Explosions 911 | . 224 204 483 . . . . . . . . . . . . . . . . . . . Melee 4396 | . . . . . 261 . . . . 775 . . . 120 302 . 1789 . . . . 1149 Ramming 9 | . . . 9 . . . . . . . . . . . . . . . . . . . Kinetic 3515 | . 78 31 534 2846 . . . . . . . . . . . . 26 . . . . . Thermal 1183 | . 447 50 686 . . . . . . . . . . . . . . . . . . . Explosive 911 | . 224 204 483 . . . . . . . . . . . . . . . . . . . Electromagnetic 233 | . 233 . . . . . . . . . . . . . . . . . . . . . Impact . | . . . . . . . . . . . . . . . . . . . . . . . Slashing 1036 | . . . . . 261 . . . . 775 . . . . . . . . . . . . Piercing 2385 | . . . . . . . . . . . . . . 120 302 . 1789 . . . . 174 Entropic 975 | . . . . . . . . . . . . . . . . . . . . . . 975 Highest Corruption 2 | . 2 2 . 1 . . . . . . . . . . 1 1 2 2 2 2 . . Average Corruption 1 | . 2 2 . 1 . . . . . . . . . . 1 1 1 2 2 2 . . Corruption Purged . | . . . . . . . . . . . . . . . . . . . . . . . Corruption Blocked 2 | . . . . . . . . . . . . . . . . . . . . . . 2 Effects 51 | . 12 3 . 17 . . . . . . . . . . . 2 13 2 2 . . . Message Errors 13 | . 4 3 . 4 . . . . . . . . . . . . 1 1 . . . . Matter Fused 13 | . 2 . . 4 . . . . . . . . . . . 1 5 1 . . . . Heat Flow Errors 8 | . 2 . . 3 . . . . . . . . . . . 1 2 . . . . . Energy Discharges 6 | . 3 . . 2 . . . . . . . . . . . . 1 . . . . . Parts Rejected 2 | . . . . 2 . . . . . . . . . . . . . . . . . . Data Loss (minor) 5 | . . . . 1 . . . . . . . . . . . . 3 . 1 . . . Data Loss (major) 2 | . . . . 1 . . . . . . . . . . . . . . 1 . . . Alerts 2 | . 1 . . . . . . . . . . . . . . . 1 . . . . . Overload Shots . | . . . . . . . . . . . . . . . . . . . . . . . Overflow Damage 736 | . 11 32 13 . 7 . . . . 90 . . . . 101 . 145 . . . . 337 Projectiles . | . . . . . . . . . . . . . . . . . . . . . . . Explosions 56 | . 11 32 13 . . . . . . . . . . . . . . . . . . . Melee 680 | . . . . . 7 . . . . 90 . . . . 101 . 145 . . . . 337 Knockbacks . | . . . . . . . . . . . . . . . . . . . . . . . Impact . | . . . . . . . . . . . . . . . . . . . . . . . Kinetic . | . . . . . . . . . . . . . . . . . . . . . . . Secondary . | . . . . . . . . . . . . . . . . . . . . . . . Self-Inflicted Damage 144 | . 20 77 47 . . . . . . . . . . . . . . . . . . . Shots 5 | . 1 2 2 . . . . . . . . . . . . . . . . . . . Rammed 1 | . . . 1 . . . . . . . . . . . . . . . . . . . Targets Rammed 1 | . . . 1 . . . . . . . . . . . . . . . . . . . Kicked . | . . . . . . . . . . . . . . . . . . . . . . . Crushed . | . . . . . . . . . . . . . . . . . . . . . . . Highest Temperature 309 | . 309 40 300 273 3 . 4 . 4 1 . . . . 3 127 237 . . . . . Average Temperature 69 | . 102 20 67 53 3 . 4 . 4 1 . . . . 3 32 101 . . . . . Received Heat Transfer 2160 | . 399 15 597 792 18 . 18 . 42 39 . 9 . 63 . . 99 . . 9 . 60 Effects 1 | . 1 . . . . . . . . . . . . . . . . . . . . . Energy Bleed 1 | . 1 . . . . . . . . . . . . . . . . . . . . . Siege Activations . | . . . . . . . . . . . . . . . . . . . . . . . Robots Corrupted . | . . . . . . . . . . . . . . . . . . . . . . . Combat Hostiles . | . . . . . . . . . . . . . . . . . . . . . . . Parts Fried . | . . . . . . . . . . . . . . . . . . . . . . . Impact Corruptions . | . . . . . . . . . . . . . . . . . . . . . . . Robots Melted . | . . . . . . . . . . . . . . . . . . . . . . . Combat Hostiles . | . . . . . . . . . . . . . . . . . . . . . . . Parts Melted 7 | . 2 . 4 1 . . . . . . . . . . . . . . . . . . Heat Transferred 3783 | . 1276 222 2285 . . . . . . . . . . . . . . . . . . . Parts Sabotaged . | . . . . . . . . . . . . . . . . . . . . . . . Parts Stolen . | . . . . . . . . . . . . . . . . . . . . . . . Parts Stripped . | . . . . . . . . . . . . . . . . . . . . . . . Power Chain Reactions . | . . . . . . . . . . . . . . . . . . . . . . . Missiles Intercepted . | . . . . . . . . . . . . . . . . . . . . . . . Alert | -11 -10 -10 -9 -8 -7 -7 -7 -7 -6 -6 -6 -6 -6 -5 -5 -5 -5 -5 -5 -5 -4 -4 ------- Run | Scr Mat Min Mat Mat Fac Low Low Dat Pro Fac Low Low Zio Pro Fac Was Fac Upp Upp War Pro Fac Peak Influence 608 | . 279 165 535 462 359 . . . . 235 . . . . 255 89 608 . . . . 309 Initial 210 | . . 55 64 189 210 . . . . 35 . . . . . 89 62 . . . . 28 Average 245 | . 117 163 353 342 280 . . . . 104 . . . . 109 89 332 . . . . 158 Maximum Alert Level 2 | . 1 . 2 2 1 . . . . 1 . . . . 1 . 2 . . . . 1 Low Security (%) 39 | 100 91 100 12 2 . . . . . 87 . . . . 85 100 9 . . . . 63 Level 1 47 | . 8 . 48 76 100 . . . . 12 . . . . 14 . 67 . . . . 36 Level 2 13 | . . . 38 20 . . . . . . . . . . . . 22 . . . . . Level 3 . | . . . . . . . . . . . . . . . . . . . . . . . Level 4 . | . . . . . . . . . . . . . . . . . . . . . . . Level 5 . | . . . . . . . . . . . . . . . . . . . . . . . High Security . | . . . . . . . . . . . . . . . . . . . . . . . Max Security . | . . . . . . . . . . . . . . . . . . . . . . . Squads Dispatched 41 | . 1 . 3 5 2 . . . . 9 . . . . 2 . 13 . . . . 6 Investigation 16 | . . . 1 . 1 . . . . 6 . . . . 2 . 4 . . . . 2 Extermination 4 | . . . . . 1 . . . . 1 . . . . . . . . . . . 2 Reinforcement 20 | . 1 . 2 5 . . . . . 1 . . . . . . 9 . . . . 2 Assault 1 | . . . . . . . . . . 1 . . . . . . . . . . . . Garrison . | . . . . . . . . . . . . . . . . . . . . . . . Intercept . | . . . . . . . . . . . . . . . . . . . . . . . Searches Triggered . | . . . . . . . . . . . . . . . . . . . . . . . Data Miner Redirects 6 | . . . . . . . . . . 3 . . . . 2 . 1 . . . . . Construction Impeded 1 | . . . . . . . . . . . . . . . . . 1 . . . . . Haulers Reinforced 2 | . . . . . . . . . . . . . . . . . 2 . . . . . Active Scanning Responses . | . . . . . . . . . . . . . . . . . . . . . . . Cargo Convoy Interrupts 1 | . . . . . . . . . . 1 . . . . . . . . . . . . Stealth | -11 -10 -10 -9 -8 -7 -7 -7 -7 -6 -6 -6 -6 -6 -5 -5 -5 -5 -5 -5 -5 -4 -4 --------- Run | Scr Mat Min Mat Mat Fac Low Low Dat Pro Fac Low Low Zio Pro Fac Was Fac Upp Upp War Pro Fac Distress Signals 13 | . 1 . 3 3 1 . . . 1 1 . . . . . . 1 . . . . 2 Communications Jammed . | . . . . . . . . . . . . . . . . . . . . . . . Distress Signals . | . . . . . . . . . . . . . . . . . . . . . . . Times Spotted 294 | . 19 7 45 50 8 1 3 . 14 24 . 6 . 9 14 . 29 1 1 21 5 37 Peak Tracking Total 18 | . 4 3 7 7 7 1 3 . 9 7 . 5 . 9 8 . 7 1 1 18 3 12 Tactical Retreats 45 | . . . . 2 3 1 2 . 2 7 . 3 . . 2 . 8 . 1 3 2 9 Traps | -11 -10 -10 -9 -8 -7 -7 -7 -7 -6 -6 -6 -6 -6 -5 -5 -5 -5 -5 -5 -5 -4 -4 ------- Run | Scr Mat Min Mat Mat Fac Low Low Dat Pro Fac Low Low Zio Pro Fac Was Fac Upp Upp War Pro Fac Traps Triggered 13 | . 2 . 2 2 1 . . . . 2 . . . . 1 . 2 . . . . 1 Indirectly . | . . . . . . . . . . . . . . . . . . . . . . . Trap Hack Attempts . | . . . . . . . . . . . . . . . . . . . . . . . Triggered . | . . . . . . . . . . . . . . . . . . . . . . . Disarmed . | . . . . . . . . . . . . . . . . . . . . . . . Reprogrammed . | . . . . . . . . . . . . . . . . . . . . . . . Reused . | . . . . . . . . . . . . . . . . . . . . . . . Traps Extracted . | . . . . . . . . . . . . . . . . . . . . . . . Installed . | . . . . . . . . . . . . . . . . . . . . . . . Triggered 16 | . . . . . . 1 . . 1 1 . . . . . . . . . 13 . . Machines | -11 -10 -10 -9 -8 -7 -7 -7 -7 -6 -6 -6 -6 -6 -5 -5 -5 -5 -5 -5 -5 -4 -4 ---------- Run | Scr Mat Min Mat Mat Fac Low Low Dat Pro Fac Low Low Zio Pro Fac Was Fac Upp Upp War Pro Fac Machines Disabled 12 | . . 3 2 . . . . . 1 . . . . . 2 . 4 . . . . . Max in Single Turn 3 | . . 3 1 . . . . . 1 . . . . . 1 . 1 . . . . . Garrison Access 4 | . . . . . 1 . . . . 1 . . . . . . 2 . . . . . Machines Sabotaged . | . . . . . . . . . . . . . . . . . . . . . . . Garrisons Compromised . | . . . . . . . . . . . . . . . . . . . . . . . Overloaded Fab Kills . | . . . . . . . . . . . . . . . . . . . . . . . Hacking | -11 -10 -10 -9 -8 -7 -7 -7 -7 -6 -6 -6 -6 -6 -5 -5 -5 -5 -5 -5 -5 -4 -4 --------- Run | Scr Mat Min Mat Mat Fac Low Low Dat Pro Fac Low Low Zio Pro Fac Was Fac Upp Upp War Pro Fac Machines Accessed 73 | . 1 . 1 6 4 1 1 4 1 13 1 . . . 7 . 16 . . 9 . 8 Terminals 38 | . 1 . 1 5 2 1 . . 1 8 . . . . 6 . 7 . . . . 6 Fabricators 10 | . . . . . 1 . . . . 4 . . . . 1 . 3 . . . . 1 Repair Stations 2 | . . . . . . . . . . . . . . . . . 2 . . . . . Recycling Units . | . . . . . . . . . . . . . . . . . . . . . . . Scanalyzers 5 | . . . . 1 . . . . . 1 . . . . . . 2 . . . . 1 Garrison Access 3 | . . . . . 1 . . . . . . . . . . . 2 . . . . . Total Hacks 229 | . 2 . 3 22 6 1 1 31 1 35 1 . . . 20 . 45 . . 23 . 38 Successful 157 | . 2 . 1 10 3 1 1 31 1 21 1 . . . 11 . 33 . . 23 . 18 Failed 69 | . . . 2 12 3 . . . . 13 . . . . 8 . 12 . . . . 19 Catastrophic 9 | . . . . 3 . . . . . 3 . . . . . . 3 . . . . . Database Lockouts 3 | . . . . . . . . . . 1 . . . . 1 . . . . . . 1 Manual 111 | . 2 . 3 15 5 . . . . 21 . . . . 14 . 19 . . 1 . 31 Terminals 125 | . 2 . 3 18 3 1 . . 1 21 . . . . 18 . 24 . . . . 34 Fabricators 26 | . . . . . 2 . . . . 11 . . . . 2 . 9 . . . . 2 Repair Stations 4 | . . . . . . . . . . . . . . . . . 4 . . . . . Recycling Units . | . . . . . . . . . . . . . . . . . . . . . . . Scanalyzers 15 | . . . . 4 . . . . . 3 . . . . . . 6 . . . . 2 Garrison Access 3 | . . . . . 1 . . . . . . . . . . . 2 . . . . . Terminal Hacks 104 | . 1 . . 5 . 1 1 31 1 4 1 . . . 9 . 14 . . 23 . 13 Record 29 | . . . . . . 1 1 11 . . . . . . . . 1 . . 15 . . Part Schematic 18 | . . . . 1 . . . 12 . 1 . . . . 2 . . . . . . 2 Robot Schematic 5 | . . . . . . . . 5 . . . . . . . . . . . . . . Prototype ID Bank 10 | . . . . . . . . 3 . . . . . . . . 1 . . 6 . . Open Door 4 | . . . . . . . . . 1 . 1 . . . . . . . . 2 . . Branch Access Points 6 | . . . . 1 . . . . . 1 . . . . 1 . 2 . . . . 1 Machine Index 1 | . . . . . . . . . . . . . . . . . . . . . . 1 Terminal Index 2 | . 1 . . . . . . . . . . . . . . . 1 . . . . . Alert Level 4 | . . . . . . . . . . . . . . . 1 . 2 . . . . 1 Unreport Threat 4 | . . . . . . . . . . 1 . . . . . . 2 . . . . 1 Locate Traps 5 | . . . . . . . . . . . . . . . 3 . . . . . . 2 Dispatch Records 2 | . . . . . . . . . . . . . . . . . 1 . . . . 1 Recall Investigation 4 | . . . . . . . . . . . . . . . 1 . 2 . . . . 1 Recall Extermination 2 | . . . . . . . . . . 1 . . . . . . . . . . . 1 Recall Reinforcements 2 | . . . . . . . . . . . . . . . . . 1 . . . . 1 Hauler Manifests 3 | . . . . 2 . . . . . . . . . . 1 . . . . . . . Registered Components 1 | . . . . 1 . . . . . . . . . . . . . . . . . . Zone Layout 2 | . . . . . . . . . . . . . . . . . 1 . . . . 1 Fabricator Hacks 22 | . . . . . 2 . . . . 10 . . . . 2 . 6 . . . . 2 Load Schematic 12 | . . . . . 1 . . . . 6 . . . . 1 . 3 . . . . 1 Build 10 | . . . . . 1 . . . . 4 . . . . 1 . 3 . . . . 1 Repair Station Hacks 4 | . . . . . . . . . . . . . . . . . 4 . . . . . Scan Component 2 | . . . . . . . . . . . . . . . . . 2 . . . . . Repair 2 | . . . . . . . . . . . . . . . . . 2 . . . . . Recycling Unit Hacks . | . . . . . . . . . . . . . . . . . . . . . . . Scanalyzer 14 | . . . . 4 . . . . . 2 . . . . . . 6 . . . . 2 Insert Component 7 | . . . . 2 . . . . . 1 . . . . . . 3 . . . . 1 Analyze 7 | . . . . 2 . . . . . 1 . . . . . . 3 . . . . 1 Garrison Access Hacks 3 | . . . . . 1 . . . . . . . . . . . 2 . . . . . Seal Access 3 | . . . . . 1 . . . . . . . . . . . 2 . . . . . Unauthorized Hacks 10 | . 1 . 1 1 . . . . . 5 . . . . . . 1 . . . . 1 Terminals 10 | . 1 . 1 1 . . . . . 5 . . . . . . 1 . . . . 1 Track 2 | . . . . . . . . . . 1 . . . . . . 1 . . . . . Assimilate 3 | . . . . . . . . . . 2 . . . . . . . . . . . 1 Botnet 1 | . . . . . . . . . . 1 . . . . . . . . . . . . Operators 4 | . 1 . 1 1 . . . . . 1 . . . . . . . . . . . . Fabricators . | . . . . . . . . . . . . . . . . . . . . . . . Repair Stations . | . . . . . . . . . . . . . . . . . . . . . . . Recycling Units . | . . . . . . . . . . . . . . . . . . . . . . . Scanalyzers . | . . . . . . . . . . . . . . . . . . . . . . . Garrison Access . | . . . . . . . . . . . . . . . . . . . . . . . Data Cores Recovered . | . . . . . . . . . . . . . . . . . . . . . . . Used . | . . . . . . . . . . . . . . . . . . . . . . . Hacking Detections 45 | . 1 . 1 6 3 . . . . 11 . . . . 5 . 12 . . . . 6 Full Trace Events 15 | . . . . 1 1 . . . . 6 . . . . 2 . 3 . . . . 2 Feedback Events 3 | . . . . . . . . . . 1 . . . . . . . . . . . 2 Corruption 1 | . . . . . . . . . . . . . . . . . . . . . . 1 Hackware Fried 2 | . . . . . . . . . . 1 . . . . . . . . . . . 1 Feedback Blocked 2 | . . . . . . . . . . 2 . . . . . . . . . . . . Robot Schematics Acquired 5 | . . . . . . . . 5 . . . . . . . . . . . . . . Robots Built . | . . . . . . . . . . . . . . . . . . . . . . . Authchips . | . . . . . . . . . . . . . . . . . . . . . . . Time . | . . . . . . . . . . . . . . . . . . . . . . . Total Robot Build Rating . | . . . . . . . . . . . . . . . . . . . . . . . Part Schematics Acquired 24 | . . . . 2 . . . 12 . 2 . . . . 2 . 3 . . . . 3 Parts Built 9 | . . . . . . . . . . 4 . . . . 1 . 3 . . . . 1 Authchips 1 | . . . . . . . . . . 1 . . . . . . . . . . . . Time 692 | . . . . . 73 . . . . 282 . . . . 106 . 138 . . . . 93 Total Part Build Rating 46 | . . . . . . . . . . 16 . . . . 6 . 17 . . . . 7 Parts Repaired 2 | . . . . . . . . . . . . . . . . . 2 . . . . . Time 113 | . . . . . . . . . . . . . . . . . 113 . . . . . Parts Recycled . | . . . . . . . . . . . . . . . . . . . . . . . Recycled Matter . | . . . . . . . . . . . . . . . . . . . . . . . Retrieved Matter . | . . . . . . . . . . . . . . . . . . . . . . . Retrieved Components . | . . . . . . . . . . . . . . . . . . . . . . . Parts Scanalyzed 7 | . . . . 2 . . . . . 1 . . . . . . 3 . . . . 1 Part Schematics Acquired 6 | . . . . 1 . . . . . 1 . . . . . . 3 . . . . 1 Parts Damaged 1 | . . . . . . . . . . . . . . . . . 1 . . . . . Bothacking | -11 -10 -10 -9 -8 -7 -7 -7 -7 -6 -6 -6 -6 -6 -5 -5 -5 -5 -5 -5 -5 -4 -4 ------------ Run | Scr Mat Min Mat Mat Fac Low Low Dat Pro Fac Low Low Zio Pro Fac Was Fac Upp Upp War Pro Fac Used RIF Installer . | . . . . . . . . . . . . . . . . . . . . . . . Robots Hacked . | . . . . . . . . . . . . . . . . . . . . . . . Non-combat . | . . . . . . . . . . . . . . . . . . . . . . . Combat . | . . . . . . . . . . . . . . . . . . . . . . . Robot Hacks Applied . | . . . . . . . . . . . . . . . . . . . . . . . Relay Couplers Released . | . . . . . . . . . . . . . . . . . . . . . . . Fabnet Peak Effective % . | . . . . . . . . . . . . . . . . . . . . . . . Robots Rewired . | . . . . . . . . . . . . . . . . . . . . . . . Allies Hacked . | . . . . . . . . . . . . . . . . . . . . . . . Hacks Repelled . | . . . . . . . . . . . . . . . . . . . . . . . Allies | -11 -10 -10 -9 -8 -7 -7 -7 -7 -6 -6 -6 -6 -6 -5 -5 -5 -5 -5 -5 -5 -4 -4 -------- Run | Scr Mat Min Mat Mat Fac Low Low Dat Pro Fac Low Low Zio Pro Fac Was Fac Upp Upp War Pro Fac Total Allies 24 | . . . . . . . . . 1 2 . . . . . 20 . . . . . 1 Largest Group 20 | . . . . . . . . . 1 1 . . . . . 20 20 . . . . 1 Highest-Rated Group 709 | . . . . . . . . . 96 24 . . . . . 709 709 . . . . 10 Highest-Rated Ally 96 | . . . . . . . . . 96 24 . . . . . 50 50 . . . . 10 Total Orders . | . . . . . . . . . . . . . . . . . . . . . . . Ally Attacks 86 | . . . . . . . . . 8 . . . . . . . 78 . . . . . Total Damage 3221 | . . . . . . . . . 337 . . . . . . . 2884 . . . . . Kills 20 | . . . . . . . . . 4 . . . . . . . 16 . . . . . Allies Corrupted . | . . . . . . . . . . . . . . . . . . . . . . . Allies Melted 1 | . . . . . . . . . . . . . . . . . 1 . . . . . Intel | -11 -10 -10 -9 -8 -7 -7 -7 -7 -6 -6 -6 -6 -6 -5 -5 -5 -5 -5 -5 -5 -4 -4 ------- Run | Scr Mat Min Mat Mat Fac Low Low Dat Pro Fac Low Low Zio Pro Fac Was Fac Upp Upp War Pro Fac Robot Analysis Total . | . . . . . . . . . . . . . . . . . . . . . . . Derelict Logs Recovered 9 | . . . . . . . 1 . 1 . 1 2 2 1 . . . . . . 1 . Drone Launches . | . . . . . . . . . . . . . . . . . . . . . . . Drone Recoveries . | . . . . . . . . . . . . . . . . . . . . . . . Exploration | -11 -10 -10 -9 -8 -7 -7 -7 -7 -6 -6 -6 -6 -6 -5 -5 -5 -5 -5 -5 -5 -4 -4 ------------- Run | Scr Mat Min Mat Mat Fac Low Low Dat Pro Fac Low Low Zio Pro Fac Was Fac Upp Upp War Pro Fac Turns Passed 10442 | 89 786 209 940 2272 357 150 165 26 344 1279 142 190 247 148 257 100 1068 82 114 729 149 599 Spaces Moved 15304 | 49 409 148 477 1061 775 377 395 86 796 2476 462 426 790 401 496 288 2162 213 302 1003 320 1392 Core 6 | 2 . . . . . . . . . . . . . . . . . . . . . 4 Treads 1563 | 47 326 . 129 1061 . . . . . . . . . . . . . . . . . . Legs . | . . . . . . . . . . . . . . . . . . . . . . . Wheels 579 | . 83 148 348 . . . . . . . . . . . . . . . . . . . Hover . | . . . . . . . . . . . . . . . . . . . . . . . Flight 13156 | . . . . . 775 377 395 86 796 2476 462 426 790 401 496 288 2162 213 302 1003 320 1388 Fastest Speed 26 | 50 110 115 100 160 30 30 30 30 30 29 29 29 29 29 26 26 26 37 37 32 35 28 Average Speed 47 | 155 149 115 126 163 30 30 30 30 30 33 29 29 29 29 26 26 27 37 37 35 35 30 Slowest Speed 320 | 160 160 115 240 320 30 30 30 30 30 98 29 29 29 29 26 26 37 37 37 37 35 100 Overloaded Moves . | . . . . . . . . . . . . . . . . . . . . . . . Propulsion Burnouts . | . . . . . . . . . . . . . . . . . . . . . . . Robots Hopped 32 | . . . . . . . . . 2 2 . . . 1 5 . 5 2 . . . 15 Cave-ins Triggered . | . . . . . . . . . . . . . . . . . . . . . . . Exploration Rate (%) 56 | 5 87 38 45 77 32 63 63 72 64 52 62 62 85 59 18 93 44 45 54 94 57 34 Regions Visited 22 Branch Regions 13 Pre-discovered Areas 6 | . . . . . . . . 1 . . 1 . 1 1 . . . . . 1 1 . Known Exits Taken 16 | . . . . 1 1 1 1 1 1 1 1 1 1 1 . . 1 1 1 1 1 . Unknown Exits Taken 4 | 1 1 1 1 . . . . . . . . . . . . . . . . . . . Scrap Searched 24 | . . . . . . 3 2 . 3 . 4 1 4 2 . . . 2 1 . 2 . Spaces Dug 196 | . 5 . 13 3 22 4 5 . . 57 2 2 . 2 21 . 29 . . . 3 28 Terrain Destroyed 232 | . 28 . 26 3 22 4 5 . . 57 2 2 . 2 21 . 29 . . . 3 28 Melee 178 | . . . . 3 22 4 5 . . 57 2 2 . 2 21 . 29 . . . 3 28 Projectile . | . . . . . . . . . . . . . . . . . . . . . . . AOE 54 | . 28 . 26 . . . . . . . . . . . . . . . . . . . Terrain Rammed . | . . . . . . . . . . . . . . . . . . . . . . . Walls Destroyed . | . . . . . . . . . . . . . . . . . . . . . . . Machines Disabled . | . . . . . . . . . . . . . . . . . . . . . . . Actions | -11 -10 -10 -9 -8 -7 -7 -7 -7 -6 -6 -6 -6 -6 -5 -5 -5 -5 -5 -5 -5 -4 -4 --------- Run | Scr Mat Min Mat Mat Fac Low Low Dat Pro Fac Low Low Zio Pro Fac Was Fac Upp Upp War Pro Fac Total 17422 | 60 493 173 650 1350 850 405 433 85 892 2818 464 488 806 420 546 312 2443 213 303 1370 353 1495 Wait 1141 | 2 21 15 5 71 4 23 29 . 93 225 . 61 2 16 5 11 135 1 . 349 31 42 Move 15224 | 48 408 147 476 1060 774 376 394 85 791 2471 461 425 789 398 488 287 2151 208 301 1002 319 1365 Hop 27 | . . . . . . . . . 2 2 . . . 1 3 . 5 2 . . . 12 Pick Up 86 | 6 4 . 24 17 5 . 2 . . 5 . . 1 . 4 2 9 . 1 1 . 5 Fast Attach 102 | 4 2 . 10 25 7 . . . 1 8 . . 3 . 1 5 17 1 1 8 . 9 Attach 58 | . 6 1 9 5 11 . . . . 5 . . . . 4 . 9 1 . 2 . 5 Detach 30 | . . . . 5 4 . . . . 5 . . 2 . 1 . 6 . . 3 . 4 Swap 41 | . 6 2 2 7 2 1 1 . . 2 . . 5 . 1 1 9 . . . . 2 Drop 91 | . . . 9 29 9 . 2 . 1 3 . . 4 . 2 6 13 . . 5 . 8 Fire 297 | . 46 8 114 128 . . . . . . . . . . . . 1 . . . . . Melee 307 | . . . . 3 34 5 5 . 4 75 3 2 . 5 37 . 88 . . . 3 43 Ram 1 | . . . 1 . . . . . . . . . . . . . . . . . . . Kick . | . . . . . . . . . . . . . . . . . . . . . . . Crush . | . . . . . . . . . . . . . . . . . . . . . . . Escape Stasis 17 | . . . . . . . . . . 17 . . . . . . . . . . . . Rewire . | . . . . . . . . . . . . . . . . . . . . . . . Trap . | . . . . . . . . . . . . . . . . . . . . . . . Miscellaneous . | . . . . . . . . . . . . . . . . . . . . . . . Route ------- -11/Scrapyard -10/Materials (discovered 5 exits: *Mat x3 / [*Min x2]) -10/Mines -9/Materials (discovered 3 exits: *Mat x2 / [*Sto]) -8/Materials (discovered 3 exits: *Fac x3) -7/Factory (discovered 3 exits: *Fac x2 / *Low) -7/Lower Caves -7/Lower Caves (discovered 2 exits: *Fac / *Dat) -7/Data Miner -6/Proximity Caves -6/Factory (discovered 5 exits: *Fac x3 / *Low x2) -6/Lower Caves -6/Lower Caves (discovered 2 exits: *Fac / *Zio) -6/Zion -5/Proximity Caves -5/Factory (discovered 4 exits: Upp x2 / Ext x2) -5/Waste -5/Factory (discovered 5 exits: *Fac / *Upp x2 / Ext x2) -5/Upper Caves -5/Upper Caves (discovered 2 exits: *Fac / *War) -5/Warlord -4/Proximity Caves -4/Factory (discovered 4 exits: [*Res x2] / Upp x2) History --------- Turn | Location | Event 30 | -11/Scrapyard | Discovered new exit (range 14) 90 | -11/Scrapyard | Entered Materials 130 | -10/Materials | Discovered new exit (range 16) 315 | -10/Materials | Build established: Mutant 341 | -10/Materials | Discovered new exit (range 16) 447 | -10/Materials | Discovered new exit (range 14) 625 | -10/Materials | Core integrity fell below 50% 810 | -10/Materials | Discovered new exit (range 4) 852 | -10/Materials | Discovered new exit (range 10) 876 | -10/Materials | Entered Mines 902 | -10/Mines | Assembled infested the area 911 | -10/Mines | Lost 3 parts (1p2n) 993 | -10/Mines | Discovered new exit (range 15) 1085 | -10/Mines | Entered Materials 1085 | -9/Materials | Evolved 2 slots: Propulsion x1, Utility x1 1085 | -9/Materials | Discovered new exit (range 15) 1510 | -9/Materials | Discovered new exit (range 15) 1576 | -9/Materials | Core integrity fell below 50% 1602 | -9/Materials | Core integrity fell below 20% 1634 | -9/Materials | Lost 11 parts (1p3n2u5w) 1677 | -9/Materials | Discovered new exit (range 10) 2025 | -9/Materials | Entered another Materials area 2025 | -8/Materials | Evolved 2 slots: Utility x2 2551 | -8/Materials | Build established: Scavenger-Mutant 2823 | -8/Materials | Discovered new exit (range 11) 3034 | -8/Materials | Build established: Mutant 3645 | -8/Materials | Discovered new exit (range 10) 4177 | -8/Materials | Core integrity fell below 50% 4218 | -8/Materials | Discovered new exit (range 14) 4236 | -8/Materials | Build established: Scavenger-Mutant 4255 | -8/Materials | Lost 4 parts (1p2n1w) 4265 | -8/Materials | Identified exit to Factory 4290 | -8/Materials | Found Prototype Device 4297 | -8/Materials | Entered Factory 4297 | -7/Factory | Evolved 2 slots: Utility x2 4303 | -7/Factory | Identified Active Sensor Suite 4436 | -7/Factory | Discovered new exit (range 8) 4508 | -7/Factory | Lost 3 parts (1p2u) 4535 | -7/Factory | Discovered new exit (range 8) 4651 | -7/Factory | Discovered new exit (range 6) 4653 | -7/Factory | Identified exit to Lower Caves 4654 | -7/Factory | Entered Lower Caves 4757 | -7/Lower Caves | Build established: Hacker-Sprinter 4802 | -7/Lower Caves | Discovered new exit (range 7) 4804 | -7/Lower Caves | Identified exit to Lower Caves 4804 | -7/Lower Caves | Entered another Lower Caves area 4811 | -7/Lower Caves | Discovered new exit (range 15) 4915 | -7/Lower Caves | Learned Factory stockpile data 4933 | -7/Lower Caves | Encountered a Warlord checkpoint 4967 | -7/Lower Caves | Discovered new exit (range 8) 4968 | -7/Lower Caves | Identified exit to Data Miner 4969 | -7/Lower Caves | Entered Data Miner 4969 | -7/Data Miner | Discovered new exit (range 6) 4975 | -7/Data Miner | Met Data Miner 4983 | -7/Data Miner | Learned location of Section 7 (-2) 4983 | -7/Data Miner | Acquired the access code to Warlord's prototype stash 4985 | -7/Data Miner | Received God Mode back door access code from Data Miner 4995 | -7/Data Miner | Identified exit to Proximity Caves 4995 | -7/Data Miner | Entered Proximity Caves 5170 | -6/Proximity Caves | Identified exit to Factory 5227 | -6/Proximity Caves | Snuck into a huge 0b10 base via the rear entrance 5243 | -6/Proximity Caves | Escorted by Enhanced Grunt 5278 | -6/Proximity Caves | Spotted B-75 Beast 5339 | -6/Proximity Caves | Entered Factory 5339 | -6/Factory | Evolved 2 slots: Utility x2 5369 | -6/Factory | Lost 3 parts (3u) 5382 | -6/Factory | Discovered new exit (range 20) 5620 | -6/Factory | Discovered new exit (range 21) 5673 | -6/Factory | Fabricated Imp. Cesium-ion Thruster? 5699 | -6/Factory | Fabricated Adv. Sensor Array (x1) 5830 | -6/Factory | Central database locked down 5842 | -6/Factory | Discovered new exit (range 6) 5864 | -6/Factory | Identified exit to Lower Caves 5879 | -6/Factory | Hacking Suite fried by hacking feedback 5885 | -6/Factory | Incoming investigation squad redirected 5908 | -6/Factory | Incoming investigation squad redirected 6040 | -6/Factory | Discovered new exit (range 16) 6132 | -6/Factory | Build established: Hacker-Scout 6269 | -6/Factory | Incoming investigation squad redirected 6290 | -6/Factory | Fabricated Imp. Cesium-ion Thruster? 6313 | -6/Factory | Fabricated Hacking Suite? 6606 | -6/Factory | Cargo convoy interrupted 6618 | -6/Factory | Entered Lower Caves 6632 | -6/Lower Caves | Learned location of Zion (-6) 6757 | -6/Lower Caves | Discovered new exit (range 13) 6759 | -6/Lower Caves | Identified exit to Lower Caves 6760 | -6/Lower Caves | Entered another Lower Caves area 6761 | -6/Lower Caves | Encountered a Warlord checkpoint 6762 | -6/Lower Caves | Learned Factory stockpile data 6776 | -6/Lower Caves | Spotted B-75 Beast 6829 | -6/Lower Caves | Learned Factory trap positions 6835 | -6/Lower Caves | Discovered new exit (range 8) 6840 | -6/Lower Caves | Identified exit to Factory 6946 | -6/Lower Caves | Discovered new exit (range 14) 6949 | -6/Lower Caves | Identified exit to Zion 6950 | -6/Lower Caves | Entered Zion 6965 | -6/Zion | Visited the Megawrench Repair Shop 6968 | -6/Zion | Megawrench repaired 9 parts 6977 | -6/Zion | Discovered new exit (range 16) 7044 | -6/Zion | Found CR-A16's Pointy Stick 7077 | -6/Zion | Learned Factory security intel 7083 | -6/Zion | Learned location of Quarantine (-3) 7156 | -6/Zion | Given the Hacking Drone Bay 7157 | -6/Zion | Found Prototype Device 7157 | -6/Zion | Identified Hacking Drone Bay 7197 | -6/Zion | Identified exit to Proximity Caves 7197 | -6/Zion | Entered Proximity Caves 7286 | -5/Proximity Caves | Spotted B-75 Beast 7344 | -5/Proximity Caves | Discovered exit to Factory (range 3) 7345 | -5/Proximity Caves | Entered Factory 7345 | -5/Factory | Evolved 2 slots: Propulsion x1, Utility x1 7346 | -5/Factory | Loaded intel: 100 trap records 7408 | -5/Factory | Central database locked down 7438 | -5/Factory | Incoming investigation squad redirected 7511 | -5/Factory | Incoming investigation squad redirected 7578 | -5/Factory | Identified exit to Upper Caves 7578 | -5/Factory | Identified exit to Extension 7593 | -5/Factory | Fabricated Adv. Hacking Suite? 7602 | -5/Factory | Manually triggered Chute Trap 7602 | -5/Factory | Sucked down chute 7602 | -5/Factory | Entered Waste 7603 | -5/Waste | Joined by Warlord forces that had cleared the area 7651 | -5/Waste | Discovered new exit (range 13) 7691 | -5/Waste | Identified exit to Factory 7702 | -5/Waste | Entered Factory 7702 | -5/Factory | Accompanied by 20 allies 7745 | -5/Factory | Discovered exit to Upper Caves (range 5) 7850 | -5/Factory | Discovered new exit (range 2) 7851 | -5/Factory | Identified exit to Factory 8100 | -5/Factory | Repaired Broken Adv. Transmission Jammer? 8148 | -5/Factory | Fabricated Adv. Hacking Suite? 8348 | -5/Factory | Build established: Wizard-Scout 8357 | -5/Factory | Incoming investigation squad redirected 8388 | -5/Factory | Fabricated Adv. Hacking Suite (x1) 8497 | -5/Factory | Fabricated Lgt. Regenerative Plating (x1) 8618 | -5/Factory | Repaired Imp. Cesium-ion Thruster? 8673 | -5/Factory | Lost 5 parts (1p3n1u) 8738 | -5/Factory | Core integrity fell below 50% 8770 | -5/Factory | Entered Upper Caves 8847 | -5/Upper Caves | Attracted the attention of an 0b10 checkpoint 8849 | -5/Upper Caves | Discovered new exit (range 10) 8852 | -5/Upper Caves | Identified exit to Upper Caves 8852 | -5/Upper Caves | Entered another Upper Caves area 8853 | -5/Upper Caves | Discovered exit to Factory (range 9) 8888 | -5/Upper Caves | Spotted B-75 Beast 8927 | -5/Upper Caves | Encountered a Warlord checkpoint 8950 | -5/Upper Caves | Discovered new exit (range 9) 8966 | -5/Upper Caves | Identified exit to Warlord 8966 | -5/Upper Caves | Entered Warlord 8996 | -5/Warlord | Discovered new exit (range 14) 9020 | -5/Warlord | System corruption cleaned by Quarantine Array 9079 | -5/Warlord | Learned location of Testing (-2) 9079 | -5/Warlord | Learned Armory emergency access door positions 9080 | -5/Warlord | Learned 4 Access zone layouts 9080 | -5/Warlord | Learned 4 Command zone layouts 9080 | -5/Warlord | Learned Testing security intel 9080 | -5/Warlord | Learned Factory fabricator intel 9080 | -5/Warlord | Learned Armory recycling unit intel 9080 | -5/Warlord | Learned Research fabricator intel 9235 | -5/Warlord | Visited the Vortex Lab 9245 | -5/Warlord | Found Prototype Piercing Weapon 9245 | -5/Warlord | Identified Vortex Lance 9255 | -5/Warlord | Warlord's base attacked by MAIN.C 9270 | -5/Warlord | Found Vortex Lance 9379 | -5/Warlord | Met Warlord 9391 | -5/Warlord | Opened Warlord's prototype stash 9430 | -5/Warlord | Found Prototype Device 9430 | -5/Warlord | Identified System Purifier 9440 | -5/Warlord | Found Prototype Processor 9440 | -5/Warlord | Identified Exp. Core Analyzer 9588 | -5/Warlord | Found Prototype Special Weapon 9588 | -5/Warlord | Identified RU-N14's Throwing Claymores v3 9605 | -5/Warlord | Warlord forces counterattacked 9673 | -5/Warlord | Opened side exit 9686 | -5/Warlord | Spotted Executioner 9694 | -5/Warlord | Identified exit to Proximity Caves 9695 | -5/Warlord | Entered Proximity Caves 9718 | -4/Proximity Caves | Attracted the attention of an 0b10 checkpoint 9841 | -4/Proximity Caves | Discovered exit to Factory (range 9) 9844 | -4/Proximity Caves | Entered Factory 9844 | -4/Factory | Evolved 2 slots: Utility x2 9845 | -4/Factory | Loaded intel: 6 fabricator locations 9853 | -4/Factory | Central database locked down 9898 | -4/Factory | Found Prototype Processor 9929 | -4/Factory | Identified Exp. Melee Analysis Suite 10035 | -4/Factory | Imp. Hacking Suite fried by hacking feedback 10114 | -4/Factory | Identified exit to Upper Caves 10116 | -4/Factory | Found Prototype Processor 10128 | -4/Factory | Fabricated Exp. Hacking Suite? 10205 | -4/Factory | Discovered new exit (range 9) 10292 | -4/Factory | Identified Exp. Signal Interpreter 10307 | -4/Factory | Lost 4 parts (1p1n2u) 10438 | -4/Factory | Discovered new exit (range 18) 10443 | -4/Factory | Self-destructed Last Messages --------------- 10372_ Destroyed Tesla Rifle. 10376_ Destroyed Hpw. Shock Rifle. 10378_ Acquired 44 matter. 10397_ W-44 Eye sends out distress signal. 10403_ ALERT: Hostiles spotted, dispatching reinforcements to Terminal F019. 10411_ Triggered Segregator Trap. 10411_ Arcs of energy rise from the floor. 10411_ Adv. Sensor Array blown off. 10414_ Acquired Adv. Sensor Array. 10415_ System Shield destroyed. 10418_ Adv. Sensor Array destroyed. 10433_ Slug penetrates Wall. 10438_ Hacking Suite destroyed. 10438_ EXIT=FOUND 10439_ Electron Diverter destroyed. 10440_ Penetrated by Slug. 10440_ Biomechanical Wings destroyed. 10441_ Electron Diverter destroyed. 10441_ Adv. Melee Analysis Suite destroyed. Map ----- +----------------------------------------------------+ | ?????????????????????????????????????????????????? | | ?????????????????????????????????????????????????? | | ?????????????????????????????????????????????????? | | ?????????????????????????????????????????????????? | | ?????????????????????????????????????????????????? | | ?????????????????????????????????????????????????? | | ?????????????????????????????????????????????????? | | ?????????????????????????????????????????????????? | | ?????????????????????????????????????????????????? | | ?????????????????????????????????????????????????? | | ?????????????????????????????????????????????????? | | ????????????????????????????+#???????????????????? | | ??????????????????????????? #???????????????????? | | ????????????????????"" ???? #???????????????????? | | ???????????????????""" ?""" #???????????????????? | | ???????????????????""" """" #???????????????????? | | ????????????????# """" """" !#???????????????????? | | ????????????????# """" """" #???????????????????? | | ????????????????# """" """" #???????????????????? | | ????????????????# """" """" #???????????????????? | | ????????????????? #???????????????????? | | ??????????????????? [ !#???????????????????? | | ????????????????????? ! #???##########??????? | | ??????????????????????? ?????# #??????? | | ??????? ########;#/########! #??????? | | ??????